{"text_format":"3","workbook":"xlsx","n_sheets":1,"sheets":["Buget familial lunar"],"read":"whole","date_system":"1900"}

{"sheet":"Buget familial lunar","index":0,"n_rows":67,"n_cols":10,"rows_kept":67}
[null,"Buget familial lunar"]
[null,"Tabel rezumat","Total\nCostul proiectat","Total\nCost efectiv","Total\nDiferență",null,"Sursă venit lunar proiectat","Sumă"]
[null,null,{"$f":"Locuință[[#Totals],[Proiectat\nCost]]+Transport[[#Totals],[Proiectat\nCost]]+Asigurare[[#Totals],[Proiectat\nCost]]+Alimente[[#Totals],[Proiectat\nCost]]+Copii[[#Totals],[Proiectat\nCost]]+Juridic[[#Totals],[Proiectat\nCost]]+Economii[[#Totals],[Proiectat\nCost]]+Împrumuturi[[#Totals],[Proiectat\nCost]]+Distracție[[#Totals],[Proiectat\nCost]]+Taxe[[#Totals],[Proiectat \nCost]]+ÎngrijirePersonală[[#Totals],[Proiectat\nCost]]+Animale_de_casă[[#Totals],[Proiectat\nCost]]+Cadouri[[#Totals],[Proiectat\nCost]]","v":{"v":1203,"d":"1,203 lei"}},{"$f":"Locuință[[#Totals],[Reale\nCost]]+Transport[[#Totals],[Reale\nCost]]+Asigurare[[#Totals],[Reale\nCost]]+Alimente[[#Totals],[Reale\nCost]]+Copii[[#Totals],[Reale\nCost]]+Juridic[[#Totals],[Reale\nCost]]+Economii[[#Totals],[Reale\nCost]]+Împrumuturi[[#Totals],[Reale\nCost]]+Distracție[[#Totals],[Reale\nCost]]+Taxe[[#Totals],[Reale \nCost]]+ÎngrijirePersonală[[#Totals],[Reale\nCost]]+Animale_de_casă[[#Totals],[Reale\nCost]]+Cadouri[[#Totals],[Reale\nCost]]","v":{"v":1317,"d":"1,317 lei"}},{"$f":"Locuință[[#Totals],[Diferență]]+Transport[[#Totals],[Diferență]]+Asigurare[[#Totals],[Diferență]]+Alimente[[#Totals],[Diferență]]+Copii[[#Totals],[Diferență]]+Juridic[[#Totals],[Diferență]]+Economii[[#Totals],[Diferență]]+Împrumuturi[[#Totals],[Diferență]]+Distracție[[#Totals],[Diferență]]+Taxe[[#Totals],[Diferență]]+ÎngrijirePersonală[[#Totals],[Diferență]]+Animale_de_casă[[#Totals],[Diferență]]+Cadouri[[#Totals],[Diferență]]","v":{"v":-114,"d":"-114 lei"}},null,"Venit 1",{"v":4000,"d":"4,000 lei"}]
[{"$nulls":6},"Venit 2",{"v":1200,"d":"1,200 lei"}]
[null,"Locuință","Proiectat\nCost","Reale\nCost","Diferență",null,"Venit suplimentar",{"v":300,"d":"300 lei"}]
[null,"Credit ipotecar sau chirie",{"v":1000,"d":"1,000 lei"},{"v":1000,"d":"1,000 lei"},{"$f":"Locuință[Proiectat\nCost]-Locuință[Reale\nCost]","v":{"v":0,"d":"0 lei"}},null,"Total venit lunar",{"$f":"SUM(H3:H5)","v":{"v":5500,"d":"5,500 lei"}}]
[null,"Al doilea credit ipotecar sau a doua chirie",{"v":0,"d":"0 lei"},{"v":0,"d":"0 lei"},{"$f":"Locuință[Proiectat\nCost]-Locuință[Reale\nCost]","v":{"v":0,"d":"0 lei"}}]
[null,"Telefon",{"v":62,"d":"62 lei"},{"v":100,"d":"100 lei"},{"$f":"Locuință[Proiectat\nCost]-Locuință[Reale\nCost]","v":{"v":-38,"d":"-38 lei"}},null,"Sursă venit lunar efectiv","Sumă"]
[null,"Electricitate",{"v":44,"d":"44 lei"},{"v":125,"d":"125 lei"},{"$f":"Locuință[Proiectat\nCost]-Locuință[Reale\nCost]","v":{"v":-81,"d":"-81 lei"}},null,"Venit 1",{"v":4000,"d":"4,000 lei"}]
[null,"Gaze",{"v":22,"d":"22 lei"},{"v":35,"d":"35 lei"},{"$f":"Locuință[Proiectat\nCost]-Locuință[Reale\nCost]","v":{"v":-13,"d":"-13 lei"}},null,"Venit 2",{"v":1200,"d":"1,200 lei"}]
[null,"Apă și canalizare",{"v":8,"d":"8 lei"},{"v":8,"d":"8 lei"},{"$f":"Locuință[Proiectat\nCost]-Locuință[Reale\nCost]","v":{"v":0,"d":"0 lei"}},null,"Venit suplimentar",{"v":300,"d":"300 lei"}]
[null,"Cablu",{"v":34,"d":"34 lei"},{"v":39,"d":"39 lei"},{"$f":"Locuință[Proiectat\nCost]-Locuință[Reale\nCost]","v":{"v":-5,"d":"-5 lei"}},null,"Total venit lunar",{"$f":"SUM(H9:H11)","v":{"v":5500,"d":"5,500 lei"}}]
[null,"Eliminare reziduri",{"v":10,"d":"10 lei"},{"v":10,"d":"10 lei"},{"$f":"Locuință[Proiectat\nCost]-Locuință[Reale\nCost]","v":{"v":0,"d":"0 lei"}}]
[null,"Întreținere sau reparații",{"v":23,"d":"23 lei"},{"v":0,"d":"0 lei"},{"$f":"Locuință[Proiectat\nCost]-Locuință[Reale\nCost]","v":{"v":23,"d":"23 lei"}},null,"Sold","Sumă"]
[null,"Consumabile",{"v":0,"d":"0 lei"},{"v":0,"d":"0 lei"},{"$f":"Locuință[Proiectat\nCost]-Locuință[Reale\nCost]","v":{"v":0,"d":"0 lei"}},null,"Soldul proiectat",{"$f":"SUM(H6-'Buget familial lunar'!$C$3:$C$3)","v":{"v":4297,"d":"4,297 lei"}}]
[null,"Altele",{"v":0,"d":"0 lei"},{"v":0,"d":"0 lei"},{"$f":"Locuință[Proiectat\nCost]-Locuință[Reale\nCost]","v":{"v":0,"d":"0 lei"}},null,"Soldul efectiv",{"$f":"SUM(H12-D3)","v":{"v":4183,"d":"4,183 lei"}}]
[null,"Total",{"$f":"SUBTOTAL(109,Locuință[Proiectat\nCost])","v":{"v":1203,"d":"1,203 lei"}},{"$f":"SUBTOTAL(109,Locuință[Reale\nCost])","v":{"v":1317,"d":"1,317 lei"}},{"$f":"SUBTOTAL(109,Locuință[Diferență])","v":{"v":-114,"d":"-114 lei"}},null,"Diferență",{"$f":"SUM(H16-H15)","v":{"v":-114,"d":"-114 lei"}}]
[]
[null,"Transport","Proiectat\nCost","Reale\nCost","Diferență",null,"Împrumuturi","Proiectat\nCost","Reale\nCost","Diferență"]
[null,"Plată autovehicul 1",null,null,{"$f":"Transport[Proiectat\nCost]-Transport[Reale\nCost]","v":{"v":0,"d":"0 lei"}},null,"Personal",null,null,{"$f":"Împrumuturi[Proiectat\nCost]-Împrumuturi[Reale\nCost]","v":{"v":0,"d":"0 lei"}}]
[null,"Plată autovehicul 2",null,null,{"$f":"Transport[Proiectat\nCost]-Transport[Reale\nCost]","v":{"v":0,"d":"0 lei"}},null,"Student",null,null,{"$f":"Împrumuturi[Proiectat\nCost]-Împrumuturi[Reale\nCost]","v":{"v":0,"d":"0 lei"}}]
[null,"Tarif autobuz/taxi",null,null,{"$f":"Transport[Proiectat\nCost]-Transport[Reale\nCost]","v":{"v":0,"d":"0 lei"}},null,"Card de credit",null,null,{"$f":"Împrumuturi[Proiectat\nCost]-Împrumuturi[Reale\nCost]","v":{"v":0,"d":"0 lei"}}]
[null,"Asigurare",null,null,{"$f":"Transport[Proiectat\nCost]-Transport[Reale\nCost]","v":{"v":0,"d":"0 lei"}},null,"Card de credit",null,null,{"$f":"Împrumuturi[Proiectat\nCost]-Împrumuturi[Reale\nCost]","v":{"v":0,"d":"0 lei"}}]
[null,"Licențiere",null,null,{"$f":"Transport[Proiectat\nCost]-Transport[Reale\nCost]","v":{"v":0,"d":"0 lei"}},null,"Card de credit",null,null,{"$f":"Împrumuturi[Proiectat\nCost]-Împrumuturi[Reale\nCost]","v":{"v":0,"d":"0 lei"}}]
[null,"Benzină",null,null,{"$f":"Transport[Proiectat\nCost]-Transport[Reale\nCost]","v":{"v":0,"d":"0 lei"}},null,"Altele",null,null,{"$f":"Împrumuturi[Proiectat\nCost]-Împrumuturi[Reale\nCost]","v":{"v":0,"d":"0 lei"}}]
[null,"Întreținere",null,null,{"$f":"Transport[Proiectat\nCost]-Transport[Reale\nCost]","v":{"v":0,"d":"0 lei"}},null,"Total",{"$f":"SUBTOTAL(109,Împrumuturi[Proiectat\nCost])","v":{"v":0,"d":"0 lei"}},{"$f":"SUBTOTAL(109,Împrumuturi[Reale\nCost])","v":{"v":0,"d":"0 lei"}},{"$f":"SUBTOTAL(109,Împrumuturi[Diferență])","v":{"v":0,"d":"0 lei"}}]
[null,"Altele",null,null,{"$f":"Transport[Proiectat\nCost]-Transport[Reale\nCost]","v":{"v":0,"d":"0 lei"}}]
[null,"Total",{"$f":"SUBTOTAL(109,Transport[Proiectat\nCost])","v":{"v":0,"d":"0 lei"}},{"$f":"SUBTOTAL(109,Transport[Reale\nCost])","v":{"v":0,"d":"0 lei"}},{"$f":"SUBTOTAL(109,Transport[Diferență])","v":{"v":0,"d":"0 lei"}},null,"Distracție","Proiectat\nCost","Reale\nCost","Diferență"]
[{"$nulls":6},"Video/DVD",null,null,{"$f":"Distracție[Proiectat\nCost]-Distracție[Reale\nCost]","v":{"v":0,"d":"0 lei"}}]
[null,"Asigurare","Proiectat\nCost","Reale\nCost","Diferență",null,"CD-uri",null,null,{"$f":"Distracție[Proiectat\nCost]-Distracție[Reale\nCost]","v":{"v":0,"d":"0 lei"}}]
[null,"Casă",null,null,{"$f":"Asigurare[Proiectat\nCost]-Asigurare[Reale\nCost]","v":{"v":0,"d":"0 lei"}},null,"Filme",null,null,{"$f":"Distracție[Proiectat\nCost]-Distracție[Reale\nCost]","v":{"v":0,"d":"0 lei"}}]
[null,"Sănătate",null,null,{"$f":"Asigurare[Proiectat\nCost]-Asigurare[Reale\nCost]","v":{"v":0,"d":"0 lei"}},null,"Concerte",null,null,{"$f":"Distracție[Proiectat\nCost]-Distracție[Reale\nCost]","v":{"v":0,"d":"0 lei"}}]
[null,"Viață",null,null,{"$f":"Asigurare[Proiectat\nCost]-Asigurare[Reale\nCost]","v":{"v":0,"d":"0 lei"}},null,"Evenimente sportive",null,null,{"$f":"Distracție[Proiectat\nCost]-Distracție[Reale\nCost]","v":{"v":0,"d":"0 lei"}}]
[null,"Altele",null,null,{"$f":"Asigurare[Proiectat\nCost]-Asigurare[Reale\nCost]","v":{"v":0,"d":"0 lei"}},null,"Teatru live",null,null,{"$f":"Distracție[Proiectat\nCost]-Distracție[Reale\nCost]","v":{"v":0,"d":"0 lei"}}]
[null,"Total",{"$f":"SUBTOTAL(109,Asigurare[Proiectat\nCost])","v":{"v":0,"d":"0 lei"}},{"$f":"SUBTOTAL(109,Asigurare[Reale\nCost])","v":{"v":0,"d":"0 lei"}},{"$f":"SUBTOTAL(109,Asigurare[Diferență])","v":{"v":0,"d":"0 lei"}},null,"Altele",null,null,{"$f":"Distracție[Proiectat\nCost]-Distracție[Reale\nCost]","v":{"v":0,"d":"0 lei"}}]
[{"$nulls":6},"Total",{"$f":"SUBTOTAL(109,Distracție[Proiectat\nCost])","v":{"v":0,"d":"0 lei"}},{"$f":"SUBTOTAL(109,Distracție[Reale\nCost])","v":{"v":0,"d":"0 lei"}},{"$f":"SUBTOTAL(109,Distracție[Diferență])","v":{"v":0,"d":"0 lei"}}]
[null,"Aliment","Proiectat\nCost","Reale\nCost","Diferență"]
[null,"Alimente",null,null,{"$f":"Alimente[Proiectat\nCost]-Alimente[Reale\nCost]","v":{"v":0,"d":"0 lei"}},null,"Taxe","Proiectat \nCost","Reale \nCost","Diferență"]
[null,"Masă în oraș",null,null,{"$f":"Alimente[Proiectat\nCost]-Alimente[Reale\nCost]","v":{"v":0,"d":"0 lei"}},null,"Federal",null,null,{"$f":"Taxe[Proiectat \nCost]-Taxe[Reale \nCost]","v":{"v":0,"d":"0 lei"}}]
[null,"Altele",null,null,{"$f":"Alimente[Proiectat\nCost]-Alimente[Reale\nCost]","v":{"v":0,"d":"0 lei"}},null,"Județ",null,null,{"$f":"Taxe[Proiectat \nCost]-Taxe[Reale \nCost]","v":{"v":0,"d":"0 lei"}}]
[null,"Total",{"$f":"SUBTOTAL(109,Alimente[Proiectat\nCost])","v":{"v":0,"d":"0 lei"}},{"$f":"SUBTOTAL(109,Alimente[Reale\nCost])","v":{"v":0,"d":"0 lei"}},{"$f":"SUBTOTAL(109,Alimente[Diferență])","v":{"v":0,"d":"0 lei"}},null,"Local",null,null,{"$f":"Taxe[Proiectat \nCost]-Taxe[Reale \nCost]","v":{"v":0,"d":"0 lei"}}]
[{"$nulls":6},"Altele",null,null,{"$f":"Taxe[Proiectat \nCost]-Taxe[Reale \nCost]","v":{"v":0,"d":"0 lei"}}]
[null,"Copii","Proiectat\nCost","Reale\nCost","Diferență",null,"Total",{"$f":"SUBTOTAL(109,Taxe[Proiectat \nCost])","v":{"v":0,"d":"0 lei"}},{"$f":"SUBTOTAL(109,Taxe[Reale \nCost])","v":{"v":0,"d":"0 lei"}},{"$f":"SUBTOTAL(109,Taxe[Diferență])","v":{"v":0,"d":"0 lei"}}]
[null,"Medic",null,null,{"$f":"Copii[Proiectat\nCost]-Copii[Reale\nCost]","v":{"v":0,"d":"0 lei"}}]
[null,"Îmbrăcăminte",null,null,{"$f":"Copii[Proiectat\nCost]-Copii[Reale\nCost]","v":{"v":0,"d":"0 lei"}},null,"Îngrijire personală","Proiectat\nCost","Reale\nCost","Diferență"]
[null,"Taxe școlare",null,null,{"$f":"Copii[Proiectat\nCost]-Copii[Reale\nCost]","v":{"v":0,"d":"0 lei"}},null,"Medic",null,null,{"$f":"ÎngrijirePersonală[Proiectat\nCost]-ÎngrijirePersonală[Reale\nCost]","v":{"v":0,"d":"0 lei"}}]
[null,"Rechizite școlare",null,null,{"$f":"Copii[Proiectat\nCost]-Copii[Reale\nCost]","v":{"v":0,"d":"0 lei"}},null,"Păr/unghii",null,null,{"$f":"ÎngrijirePersonală[Proiectat\nCost]-ÎngrijirePersonală[Reale\nCost]","v":{"v":0,"d":"0 lei"}}]
[null,"Datoriile sau taxele către organizație",null,null,{"$f":"Copii[Proiectat\nCost]-Copii[Reale\nCost]","v":{"v":0,"d":"0 lei"}},null,"Îmbrăcăminte",null,null,{"$f":"ÎngrijirePersonală[Proiectat\nCost]-ÎngrijirePersonală[Reale\nCost]","v":{"v":0,"d":"0 lei"}}]
[null,"Bani prânz",null,null,{"$f":"Copii[Proiectat\nCost]-Copii[Reale\nCost]","v":{"v":0,"d":"0 lei"}},null,"Curățătorie",null,null,{"$f":"ÎngrijirePersonală[Proiectat\nCost]-ÎngrijirePersonală[Reale\nCost]","v":{"v":0,"d":"0 lei"}}]
[null,"Îngrijirea copilului",null,null,{"$f":"Copii[Proiectat\nCost]-Copii[Reale\nCost]","v":{"v":0,"d":"0 lei"}},null,"Club de sănătate",null,null,{"$f":"ÎngrijirePersonală[Proiectat\nCost]-ÎngrijirePersonală[Reale\nCost]","v":{"v":0,"d":"0 lei"}}]
[null,"Jucării/jocuri",null,null,{"$f":"Copii[Proiectat\nCost]-Copii[Reale\nCost]","v":{"v":0,"d":"0 lei"}},null,"Datoriile/taxele către organizație",null,null,{"$f":"ÎngrijirePersonală[Proiectat\nCost]-ÎngrijirePersonală[Reale\nCost]","v":{"v":0,"d":"0 lei"}}]
[null,"Altele",null,null,{"$f":"Copii[Proiectat\nCost]-Copii[Reale\nCost]","v":{"v":0,"d":"0 lei"}},null,"Altele",null,null,{"$f":"ÎngrijirePersonală[Proiectat\nCost]-ÎngrijirePersonală[Reale\nCost]","v":{"v":0,"d":"0 lei"}}]
[null,"Total",{"$f":"SUBTOTAL(109,Copii[Proiectat\nCost])","v":{"v":0,"d":"0 lei"}},{"$f":"SUBTOTAL(109,Copii[Reale\nCost])","v":{"v":0,"d":"0 lei"}},{"$f":"SUBTOTAL(109,Copii[Diferență])","v":{"v":0,"d":"0 lei"}},null,"Total",{"$f":"SUBTOTAL(109,ÎngrijirePersonală[Proiectat\nCost])","v":{"v":0,"d":"0 lei"}},{"$f":"SUBTOTAL(109,ÎngrijirePersonală[Reale\nCost])","v":{"v":0,"d":"0 lei"}},{"$f":"SUBTOTAL(109,ÎngrijirePersonală[Diferență])","v":{"v":0,"d":"0 lei"}}]
[]
[null,"Juridic","Proiectat\nCost","Reale\nCost","Diferență",null,"Animale_de_casă","Proiectat\nCost","Reale\nCost","Diferență"]
[null,"Avocat",null,null,{"$f":"Juridic[Proiectat\nCost]-Juridic[Reale\nCost]","v":{"v":0,"d":"0 lei"}},null,"Aliment",null,null,{"$f":"Animale_de_casă[Proiectat\nCost]-Animale_de_casă[Reale\nCost]","v":{"v":0,"d":"0 lei"}}]
[null,"Pensie",null,null,{"$f":"Juridic[Proiectat\nCost]-Juridic[Reale\nCost]","v":{"v":0,"d":"0 lei"}},null,"Medic",null,null,{"$f":"Animale_de_casă[Proiectat\nCost]-Animale_de_casă[Reale\nCost]","v":{"v":0,"d":"0 lei"}}]
[null,"Plăți",null,null,{"$f":"Juridic[Proiectat\nCost]-Juridic[Reale\nCost]","v":{"v":0,"d":"0 lei"}},null,"Îngrijire",null,null,{"$f":"Animale_de_casă[Proiectat\nCost]-Animale_de_casă[Reale\nCost]","v":{"v":0,"d":"0 lei"}}]
[null,"Altele",null,null,{"$f":"Juridic[Proiectat\nCost]-Juridic[Reale\nCost]","v":{"v":0,"d":"0 lei"}},null,"Jucării",null,null,{"$f":"Animale_de_casă[Proiectat\nCost]-Animale_de_casă[Reale\nCost]","v":{"v":0,"d":"0 lei"}}]
[null,"Total",{"$f":"SUBTOTAL(109,Juridic[Proiectat\nCost])","v":{"v":0,"d":"0 lei"}},{"$f":"SUBTOTAL(109,Juridic[Reale\nCost])","v":{"v":0,"d":"0 lei"}},{"$f":"SUBTOTAL(109,Juridic[Diferență])","v":{"v":0,"d":"0 lei"}},null,"Altele",null,null,{"$f":"Animale_de_casă[Proiectat\nCost]-Animale_de_casă[Reale\nCost]","v":{"v":0,"d":"0 lei"}}]
[{"$nulls":6},"Total",{"$f":"SUBTOTAL(109,Animale_de_casă[Proiectat\nCost])","v":{"v":0,"d":"0 lei"}},{"$f":"SUBTOTAL(109,Animale_de_casă[Reale\nCost])","v":{"v":0,"d":"0 lei"}},{"$f":"SUBTOTAL(109,Animale_de_casă[Diferență])","v":{"v":0,"d":"0 lei"}}]
[null,"Economii/Investiții","Proiectat\nCost","Reale\nCost","Diferență"]
[null,"Cont pensionare",null,null,{"$f":"Economii[Proiectat\nCost]-Economii[Reale\nCost]","v":{"v":0,"d":"0 lei"}},null,"Cadouri și donații","Proiectat\nCost","Reale\nCost","Diferență"]
[null,"Cont de investiții",null,null,{"$f":"Economii[Proiectat\nCost]-Economii[Reale\nCost]","v":{"v":0,"d":"0 lei"}},null,"Caritate 1",null,null,{"$f":"Cadouri[Proiectat\nCost]-Cadouri[Reale\nCost]","v":{"v":0,"d":"0 lei"}}]
[null,"Facultate",null,null,{"$f":"Economii[Proiectat\nCost]-Economii[Reale\nCost]","v":{"v":0,"d":"0 lei"}},null,"Caritate 2",null,null,{"$f":"Cadouri[Proiectat\nCost]-Cadouri[Reale\nCost]","v":{"v":0,"d":"0 lei"}}]
[null,"Altele",null,null,{"$f":"Economii[Proiectat\nCost]-Economii[Reale\nCost]","v":{"v":0,"d":"0 lei"}},null,"Caritate 3",null,null,{"$f":"Cadouri[Proiectat\nCost]-Cadouri[Reale\nCost]","v":{"v":0,"d":"0 lei"}}]
[null,"Total",{"$f":"SUBTOTAL(109,Economii[Proiectat\nCost])","v":{"v":0,"d":"0 lei"}},{"$f":"SUBTOTAL(109,Economii[Reale\nCost])","v":{"v":0,"d":"0 lei"}},{"$f":"SUBTOTAL(109,Economii[Diferență])","v":{"v":0,"d":"0 lei"}},null,"Total",{"$f":"SUBTOTAL(109,Cadouri[Proiectat\nCost])","v":{"v":0,"d":"0 lei"}},{"$f":"SUBTOTAL(109,Cadouri[Reale\nCost])","v":{"v":0,"d":"0 lei"}},{"$f":"SUBTOTAL(109,Cadouri[Diferență])","v":{"v":0,"d":"0 lei"}}]